bitfinex-derivatives/quotes_ETHF0:USTF0_20260131
["timestamp","ask_amount","ask_price","bid_price","bid_amount"]
[1769888054805,0.16466944,2386.1,2384.4,1.73662772]
[1769888055004,0.16466944,2386.1,2383.3,3.372]
[1769888055316,0.16411797,2385.4,2383.5,1.73662772]
[1769888055516,2.47879885,2385.6,2383.5,1.73662772]
[1769888055517,0.16411797,2385.2,2383.5,1.73662772]
[1769888057117,0.16411797,2385.2,2383.5,1.94669772]
[1769888057417,0.16411797,2385.7,2383.5,9.25569127]
[1769888057617,0.16411797,2385.7,2383.6,7.30899355]
[1769888057912,0.16411797,2385.7,2383.7,1.73662772]
[1769888058115,0.16411797,2385.7,2383.4,16.30857925]
[1769888058116,0.16411797,2385.7,2383.6,0.21006]
[1769888058312,3.36114379,2386.3,2383.5,1.73662772]
[1769888058313,0.16355212,2386.2,2384.1,0.21002]
[1769888058512,0.16355212,2386.2,2384.2,14.02099355]
[1769888058711,0.16355212,2386.2,2384.2,8.44862772]
[1769888059211,0.16355212,2386.2,2384.2,5.09362772]
[1769888059713,0.16177647,2385.6,2383.4,0.00326115]
[1769888060013,0.16177647,2385.0,2383.4,1.72617892]
[1769888060211,0.16177647,2385.4,2383.5,0.14951272]
[1769888060514,0.16177647,2385.8,2383.6,0.14951272]
[1769888060714,0.16177647,2386.2,2383.8,0.14951272]
[1769888060911,0.16177647,2386.2,2384.1,0.14951272]
[1769888061112,0.16177647,2386.2,2384.0,7.30899355]
[1769888061113,0.16177647,2386.2,2384.3,0.14951272]
[1769888061616,0.16177647,2386.2,2384.4,1.72291777]
[1769888061816,0.16177647,2386.2,2384.4,0.14951272]
[1769888062013,0.00514379,2386.3,2384.6,0.14951272]
[1769888062214,0.16692026,2386.3,2384.6,0.14951272]
[1769888062414,0.16692026,2386.3,2384.7,1.57340505]
[1769888062614,0.16692026,2386.3,2384.8,0.14951272]
[1769888062814,0.16692026,2386.3,2384.9,0.14951272]
[1769888063318,0.16692026,2386.3,2385.0,1.57340505]
[1769888065115,40.68524772,2387.6,2385.0,1.57340505]
[1769888065116,0.16177647,2387.2,2385.1,0.14951272]
[1769888065320,0.16177647,2387.2,2385.2,0.14951272]
[1769888065520,0.16177647,2387.2,2384.5,3.334]
[1769888065521,0.16177647,2387.2,2385.3,1.57340505]
[1769888065718,0.16177647,2387.2,2385.0,0.14951272]
[1769888066019,0.16177647,2388.2,2385.6,0.20989]
[1769888066318,0.16177647,2388.0,2385.8,0.14951272]
[1769888066521,0.16177647,2388.0,2386.1,0.20984]
[1769888066817,0.16177647,2388.0,2386.3,0.14951272]
[1769888067221,0.16177647,2388.0,2386.4,1.72291777]
[1769888067414,0.16177647,2388.0,2385.8,1.57340505]
[1769888067723,0.16177647,2388.0,2385.9,0.14951272]
[1769888067924,0.16177647,2388.0,2386.0,1.57340505]
[1769888068324,0.16177647,2387.7,2386.0,1.57340505]
[1769888068620,0.16177647,2386.8,2385.6,0.00384696]
[1769888068823,0.16177647,2386.5,2384.1,0.14951272]
[1769888069014,0.16177647,2386.5,2384.2,1.57340505]
[1769888069214,0.16177647,2385.9,2384.2,1.57340505]
[1769888069423,0.16177647,2385.4,2383.2,3.355]
[1769888069719,0.16177647,2385.0,2383.4,1.57340505]
[1769888069921,0.16177647,2384.9,2383.4,1.57340505]
[1769888070120,0.16177647,2384.9,2383.4,1.72291777]
[1769888070323,0.16668058,2385.4,2383.5,0.14951272]
[1769888070723,0.16668058,2385.4,2383.7,0.14951272]
[1769888071122,0.16668058,2385.4,2383.9,0.14951272]
[1769888071523,0.16668058,2385.4,2384.0,1.57340505]
[1769888071830,0.16668058,2385.4,2383.7,0.14951272]
[1769888072216,0.16668058,2385.4,2383.8,1.72291777]
[1769888072420,0.00490411,2385.4,2383.8,0.14951272]
[1769888072617,0.00490411,2385.4,2384.0,0.14951272]
[1769888073220,0.16668058,2385.4,2384.1,1.57340505]
[1769888073424,0.16668058,2385.4,2383.8,1.57340505]
[1769888073821,0.16668058,2385.4,2383.9,0.14951272]
[1769888074127,0.16668058,2385.4,2383.8,1.57340505]
[1769888074826,0.16668058,2385.4,2383.8,1.72291777]
[1769888075126,0.16668058,2385.4,2383.9,0.14951272]
[1769888075525,0.16668058,2385.4,2384.0,1.57340505]
[1769888075925,0.16668058,2385.4,2384.0,1.72291777]
[1769888076125,0.00490411,2385.4,2384.1,0.14951272]
[1769888076331,0.00490411,2385.4,2384.0,1.57340505]
[1769888076332,0.16668058,2385.4,2384.0,1.57340505]
[1769888079335,0.16039565,2385.2,2384.0,1.57340505]
[1769888079535,0.16039565,2385.2,2383.4,10.66499355]
[1769888079536,0.16039565,2385.0,2383.4,3.356]
[1769888079830,0.16039565,2385.0,2383.6,0.15049346]
[1769888080134,0.16039565,2386.4,2384.2,0.15049346]
[1769888080436,0.16039565,2387.0,2384.8,0.15049346]
[1769888080628,0.16039565,2387.0,2385.4,0.15049346]
[1769888080931,0.16039565,2387.5,2385.5,0.14736115]
[1769888081135,0.00369921,2387.5,2385.9,0.14736115]
[1769888081335,0.00369921,2387.5,2386.1,0.14736115]
[1769888082134,0.00369921,2387.5,2386.2,1.7207662]
[1769888082334,0.00369921,2387.5,2386.3,0.14736115]
[1769888082936,0.00369921,2387.5,2386.4,1.56844199]
[1769888082937,0.16074843,2387.3,2386.4,1.56844199]
[1769888083135,0.16074843,2387.3,2385.9,1.56844199]
[1769888083334,0.16074843,2387.1,2385.6,1.56844199]
[1769888083728,0.16074843,2387.1,2385.6,1.71580314]
[1769888083933,0.16074843,2387.1,2385.7,0.14736115]
[1769888084235,0.16074843,2387.1,2385.7,1.71580314]
[1769888084437,0.00369921,2387.5,2385.8,0.14736115]
[1769888084737,0.16444764,2387.5,2385.7,1.56844199]
[1769888085237,0.16074843,2387.3,2385.7,1.56844199]
[1769888085432,0.16074843,2387.1,2385.7,1.56844199]
[1769888087432,0.16074843,2387.1,2385.8,0.14736115]
[1769888087640,0.16444764,2387.5,2385.8,0.14736115]
[1769888087934,0.16444764,2387.5,2386.0,0.14736115]
[1769888088139,0.16444764,2387.5,2386.1,1.56844199]
[1769888089733,0.00369921,2387.5,2386.2,0.14736115]
[1769888090141,0.00369921,2387.5,2386.3,1.56844199]
[1769888090342,0.16074843,2388.6,2386.4,0.14736115]
[1769888090645,0.16074843,2388.2,2386.4,0.14736115]
[1769888090838,0.16074843,2388.2,2386.5,1.71580314]
[1769888091040,0.16074843,2388.2,2386.5,0.14736115]
[1769888091245,0.16407442,2388.2,2386.6,1.56844199]
[1769888092046,0.16407442,2388.2,2386.6,1.71580314]
[1769888092450,0.16407442,2388.2,2386.6,1.56844199]
[1769888092645,0.16074843,2387.6,2386.6,1.56844199]
[1769888092850,0.00332599,2388.2,2386.8,0.14736115]
[1769888093248,0.00332599,2388.2,2387.0,0.14736115]
[1769888093547,37.32924772,2389.6,2387.0,0.14736115]
[1769888093548,0.16074843,2389.1,2387.1,0.14736115]
[1769888093745,0.16074843,2388.9,2387.2,0.14736115]
[1769888094743,0.16429607,2388.9,2387.3,1.56844199]
[1769888095148,0.16074843,2388.8,2387.3,1.56844199]
[1769888095453,0.16074843,2388.8,2387.4,0.14736115]
[1769888095642,0.00354764,2388.9,2387.4,0.14736115]
[1769888095848,0.00354764,2388.9,2387.6,0.14736115]
[1769888096250,0.16429607,2388.9,2387.7,1.71580314]
[1769888096449,0.16429607,2388.9,2387.2,0.00344768]
[1769888096450,0.16429607,2388.9,2387.4,1.56844199]
[1769888096852,0.16429607,2388.9,2387.4,1.71580314]
[1769888097751,0.00354764,2388.9,2387.5,0.14736115]
[1769888097952,0.16429607,2388.9,2387.5,0.14736115]
[1769888098152,0.16429607,2388.9,2387.6,1.56844199]
[1769888098850,0.16429607,2388.9,2387.6,1.71580314]
[1769888099157,0.16429607,2388.9,2387.7,0.14736115]
[1769888099652,0.16074843,2389.3,2387.9,0.14736115]
[1769888100056,0.16074843,2389.3,2388.0,1.56844199]
[1769888100453,0.16074843,2389.3,2388.0,1.71580314]
[1769888100757,0.00374797,2389.3,2388.1,0.14736115]
[1769888101051,0.16074843,2389.7,2388.1,0.14736115]
[1769888101250,4.86409191,2390.2,2388.3,0.1444577]
[1769888101450,0.16074843,2390.7,2388.5,0.20963]
[1769888101651,2.48128109,2391.6,2388.5,0.20963]
[1769888101652,0.16074843,2391.6,2389.5,0.14634934]
[1769888101852,0.16074843,2391.7,2389.8,0.14634934]
[1769888102050,0.16074843,2390.8,2388.9,0.14634934]
[1769888102448,0.16074843,2390.8,2388.3,3.353]
[1769888102449,0.16074843,2390.8,2389.0,1.56844199]
[1769888102649,0.16074843,2390.6,2388.4,1.56844199]
[1769888102854,0.16074843,2390.4,2388.0,1.56844199]
[1769888103049,0.16074843,2390.1,2388.1,0.14634934]
[1769888103254,0.20944,2390.8,2388.1,0.14634934]
[1769888103255,0.16074843,2390.7,2388.3,0.14634934]
[1769888103453,0.16074843,2390.7,2388.5,0.14414091]
[1769888103657,0.16074843,2390.7,2388.6,0.14414091]
[1769888103848,0.16074843,2390.7,2388.2,8.87743554]
[1769888103849,0.16074843,2390.7,2388.8,0.14414091]
[1769888104258,0.16074843,2390.7,2388.9,1.56844199]
[1769888104461,0.16074843,2390.5,2388.4,0.14414091]
[1769888104762,0.16074843,2390.2,2388.5,1.56844199]
[1769888104964,0.16074843,2390.2,2388.2,1.7125829]
[1769888105162,0.16074843,2389.8,2388.2,1.56844199]
[1769888105459,0.16074843,2389.8,2388.3,0.14542393]
[1769888105460,0.00452024,2389.8,2388.3,0.14542393]
[1769888105850,0.16526867,2389.8,2388.4,1.71386592]
[1769888106051,0.16526867,2389.8,2388.4,0.14542393]
[1769888106660,0.16526867,2389.8,2388.5,1.56844199]
[1769888107656,0.16526867,2389.8,2388.6,0.14530152]
[1769888108052,0.00452024,2389.8,2388.7,1.71374351]
[1769888108250,0.00452024,2389.8,2388.8,1.71374351]
[1769888108456,0.00452024,2389.8,2388.9,0.14530152]
[1769888108656,0.20943,2390.8,2388.2,0.14530152]
[1769888109154,0.20945,2390.7,2388.4,0.15306955]
[1769888109556,0.20945,2390.7,2388.5,1.72151154]
[1769888109752,0.20945,2390.7,2388.5,0.15306955]
[1769888109753,0.20947,2390.4,2388.5,0.15306955]
[1769888109958,3.31368086,2390.4,2388.6,1.56844199]
[1769888110162,0.20946,2390.5,2388.2,0.15306955]
[1769888110359,0.00409619,2390.7,2388.2,0.15306955]
[1769888110653,0.00409619,2390.7,2388.6,0.15306955]
[1769888110654,0.16201399,2390.6,2388.6,0.15306955]
[1769888111262,0.00409619,2390.7,2388.8,0.15306955]
[1769888111659,0.16611018,2390.7,2389.0,0.15306955]
[1769888112060,0.16201399,2390.6,2389.2,0.15306955]
[1769888112454,0.16201399,2390.6,2389.3,1.56844199]
[1769888112657,0.16201399,2390.6,2388.8,0.15306955]
[1769888112858,0.16201399,2390.6,2388.9,1.56844199]
[1769888113058,0.16201399,2390.6,2389.0,0.15306955]
[1769888113558,0.16201399,2390.5,2389.1,1.56844199]
[1769888113763,0.16201399,2390.4,2388.8,0.15306955]
[1769888113963,0.16201399,2390.1,2388.9,1.56844199]
[1769888114160,0.16201399,2389.9,2388.1,1.72151154]
[1769888114365,0.16201399,2389.9,2388.2,0.15306955]
[1769888114865,0.16201399,2390.4,2388.4,0.15306955]
[1769888115061,0.16201399,2390.4,2388.5,0.15306955]
[1769888115262,0.00409619,2390.7,2388.7,0.15306955]
[1769888115660,0.16611018,2390.7,2388.7,0.15306955]
[1769888115861,0.16201399,2390.6,2388.9,0.15306955]
[1769888116161,0.16201399,2390.6,2389.1,0.15306955]
[1769888116562,0.16201399,2390.6,2389.2,1.72151154]
[1769888116762,0.16201399,2390.6,2388.9,0.15306955]
[1769888117159,0.16201399,2390.5,2389.0,1.56844199]
[1769888117364,0.16201399,2390.1,2388.5,1.56844199]
[1769888117564,0.16201399,2390.1,2388.3,0.15306955]
[1769888117765,0.16201399,2390.1,2388.5,0.15306955]
[1769888118267,0.16201399,2390.1,2388.7,0.15306955]
[1769888118467,0.16201399,2389.7,2388.1,1.56844199]
[1769888118659,0.16201399,2389.7,2388.2,0.15306955]
[1769888119264,0.16201399,2389.7,2388.3,1.56844199]
[1769888119670,0.16201399,2389.6,2388.3,1.56844199]
[1769888119869,0.16201399,2389.4,2387.4,0.15306955]
[1769888120072,0.16201399,2389.4,2387.2,1.56844199]
[1769888120073,0.16201399,2388.8,2387.2,1.56844199]
[1769888120267,0.16201399,2388.8,2387.0,0.15306955]
[1769888120472,0.16201399,2388.8,2387.2,0.15306955]
[1769888120668,0.16201399,2388.8,2387.4,0.15306955]
[1769888120869,0.16744064,2388.8,2387.4,0.15658397]
[1769888121064,0.16744064,2388.8,2387.8,0.00479998]
[1769888121268,0.00542665,2388.8,2387.8,0.15306955]
[1769888121470,0.00542665,2388.8,2387.9,1.72631152]
[1769888121671,0.00542665,2388.8,2387.9,0.15306955]
[1769888121863,3.351,2389.8,2387.4,0.00351442]
[1769888121864,0.16201399,2389.7,2388.3,0.00479998]
[1769888122063,0.16201399,2389.4,2387.5,1.56844199]
[1769888122269,0.16201399,2388.7,2387.5,1.56844199]
[1769888122470,0.16201399,2388.6,2387.4,0.00351442]
[1769888122773,0.16201399,2388.6,2387.5,1.56844199]
[1769888122973,3.351,2388.7,2387.7,0.00479998]
[1769888123168,0.00501716,2388.6,2387.8,1.56844199]
[1769888123373,0.16703115,2388.6,2387.6,1.56844199]
[1769888123769,0.00501716,2388.6,2387.6,1.72631152]
[1769888123970,0.16201399,2389.4,2388.0,0.15306955]
[1769888124272,0.16201399,2389.4,2388.3,0.15306955]
[1769888124480,0.16201399,2389.4,2387.7,0.15306955]
[1769888124680,0.16201399,2389.4,2388.0,0.15306955]
[1769888124978,0.16608128,2389.4,2388.0,0.15306955]
[1769888125177,0.16608128,2389.4,2388.1,1.56844199]
[1769888126174,0.16608128,2389.4,2387.6,0.15306955]
[1769888126372,0.16201399,2389.2,2387.6,0.15306955]
[1769888126576,0.16201399,2389.2,2387.7,1.72151154]
[1769888126777,0.16201399,2389.2,2387.4,0.00351442]
[1769888126778,0.16201399,2389.2,2388.1,0.15306955]
[1769888126972,0.00406729,2389.4,2388.1,0.15306955]
[1769888127175,0.16201399,2390.0,2388.8,0.15306955]
[1769888127574,0.16201399,2390.0,2388.9,1.56844199]
[1769888127875,0.16201399,2390.0,2388.4,0.15306955]
[1769888128073,0.16201399,2390.0,2388.6,0.15306955]
[1769888128377,0.16201399,2389.8,2388.3,1.56844199]
[1769888128577,0.16201399,2389.8,2388.4,1.72151154]
[1769888128773,0.00343632,2390.0,2388.5,0.15306955]
[1769888129273,0.00343632,2390.0,2388.7,0.15786953]
[1769888129474,0.00343632,2390.0,2388.7,0.15306955]
[1769888129779,0.00343632,2390.0,2388.9,0.15306955]
[1769888130083,0.00343632,2390.0,2389.4,0.15306955]
[1769888130379,0.95383949,2390.9,2389.4,0.15306955]
[1769888130576,0.16201399,2390.9,2389.6,0.15306955]
[1769888130975,0.16201399,2390.9,2389.7,1.72151154]
[1769888131279,0.16556546,2390.9,2389.7,0.1565773]
[1769888131479,0.16556546,2390.9,2389.8,1.56844199]
[1769888132374,0.16556546,2390.9,2389.8,1.72151154]
[1769888132582,0.00355147,2390.9,2390.0,0.15786953]
[1769888132977,0.16201399,2391.5,2390.1,1.72631152]
[1769888133179,0.16201399,2391.5,2390.2,1.56844199]
[1769888133380,0.16201399,2391.4,2390.2,1.56844199]
[1769888133682,0.16201399,2391.3,2390.2,1.56844199]
[1769888133880,0.16201399,2391.2,2390.2,1.56844199]
[1769888134380,0.37046338,2391.5,2390.3,0.15306955]
[1769888134581,0.16201399,2391.6,2390.3,0.15786953]
[1769888134782,0.16201399,2391.6,2390.4,1.56844199]
[1769888134982,0.16620833,2391.6,2390.4,1.56844199]
[1769888135284,0.5340911,2391.6,2390.4,1.56844199]
[1769888135783,0.16620833,2391.6,2390.6,0.00479998]
[1769888136081,0.00419434,2391.6,2391.0,0.00479998]
[1769888136286,0.36991629,2391.8,2391.4,0.00479998]
[1769888136481,0.16201399,2392.7,2391.5,0.15306955]
[1769888136784,0.16201399,2392.3,2390.3,0.15306955]
[1769888136976,0.15006723,2391.8,2390.3,1.56844199]
[1769888137181,0.15006723,2391.3,2390.3,1.56844199]
[1769888137382,0.15006723,2391.2,2390.3,1.57233364]
[1769888137583,0.15006723,2391.7,2390.3,1.57233364]
[1769888137882,0.15006723,2391.6,2390.3,1.57233364]
[1769888138087,0.15006723,2391.5,2390.3,1.57233364]
[1769888138386,0.15006723,2391.4,2390.3,1.57233364]
[1769888140083,0.15335286,2391.8,2390.6,0.00479998]
[1769888140285,0.15335286,2391.8,2390.4,0.1637366]
[1769888140684,0.15335286,2391.8,2390.3,1.57233364]
[1769888140685,0.15006723,2391.6,2390.5,1.56844199]
[1769888140885,0.15006723,2391.5,2390.5,1.56844199]
[1769888141082,0.15006723,2391.5,2390.3,0.00389165]
[1769888141285,0.00328563,2391.8,2391.0,0.00479998]
[1769888141486,0.00328563,2391.8,2391.3,0.00479998]
[1769888141687,0.00328563,2391.8,2391.1,0.15409985]
[1769888141889,0.00328563,2391.8,2390.3,0.1579915]
[1769888141890,0.16346852,2391.8,2390.3,0.1579915]
[1769888142087,0.16346852,2391.8,2390.6,0.15409985]
[1769888142292,0.00328563,2391.8,2390.8,0.15889983]
[1769888142592,0.16018289,2391.7,2390.5,1.56844199]
[1769888142787,0.16018289,2391.7,2390.6,0.15409985]
[1769888142990,0.00328563,2391.8,2391.0,0.00479998]
[1769888143190,0.00328563,2391.8,2390.9,0.00479998]
[1769888143392,0.00328563,2391.8,2391.2,0.00479998]
[1769888143590,0.16346852,2391.8,2391.0,1.56844199]
[1769888143793,0.16346852,2391.8,2390.4,1.72254184]
[1769888143992,0.16018289,2391.4,2390.4,1.56844199]
[1769888144192,0.16018289,2391.3,2390.3,0.00389165]
[1769888144393,0.16018289,2391.3,2390.3,0.00869163]
[1769888144594,0.16018289,2391.3,2390.3,0.00389165]
[1769888144992,0.16018289,2391.3,2390.3,0.00869163]
[1769888145189,0.16018289,2391.1,2389.2,0.15409985]
[1769888145394,0.16018289,2390.7,2389.2,0.15409985]
[1769888145592,0.16018289,2390.7,2389.5,0.15409985]
[1769888146197,0.16018289,2390.7,2389.5,0.00504807]
[1769888146399,3.732,2391.0,2388.3,0.15409985]
[1769888146400,0.16018289,2390.1,2388.3,0.15409985]
[1769888146698,0.20949,2390.2,2388.3,0.15409985]
[1769888146699,0.16018289,2389.9,2388.3,0.15409985]
[1769888146892,0.16018289,2389.8,2388.3,0.15889983]
[1769888147092,0.16018289,2389.8,2388.3,0.15409985]
[1769888147298,0.16018289,2389.8,2388.5,0.00479998]
[1769888147501,0.165565,2389.8,2388.5,0.00479998]
[1769888147701,0.165565,2389.8,2388.6,0.00479998]
[1769888147897,0.165565,2389.8,2388.5,0.00479998]
[1769888148603,0.165565,2389.8,2388.7,0.15409985]
[1769888149000,0.00538211,2389.8,2389.0,0.00479998]
[1769888149204,0.00538211,2389.8,2388.8,0.00479998]
[1769888149205,0.165565,2389.8,2388.8,0.00479998]
[1769888150105,0.165565,2389.8,2388.6,0.15409985]
[1769888150106,0.165565,2389.8,2389.1,0.00479998]
[1769888150307,0.165565,2389.8,2389.0,0.00479998]
[1769888150510,0.00538211,2389.8,2389.0,0.15889983]
[1769888150704,0.16018289,2390.6,2389.6,0.00479998]
[1769888150899,0.16018289,2390.6,2388.9,0.15409985]
[1769888151104,0.16018289,2390.6,2388.3,6.07435473]
[1769888151105,0.16018289,2390.4,2388.5,0.15409985]
[1769888151507,0.16018289,2390.1,2388.5,0.15409985]
[1769888151704,0.16018289,2389.7,2388.3,0.00361642]
[1769888151902,0.16018289,2389.5,2388.4,0.00479998]
[1769888152303,0.16018289,2389.5,2388.5,0.00479998]
[1769888152802,0.16018289,2389.5,2388.6,0.00479998]
[1769888153002,0.16018289,2389.5,2388.3,0.00361642]
[1769888153204,0.36973289,2389.5,2388.3,0.00361642]
[1769888153401,0.16018289,2388.8,2387.2,0.15409985]
[1769888153702,0.16018289,2388.8,2387.5,0.15409985]
[1769888154006,0.16018289,2388.8,2387.5,0.15889983]
[1769888154208,0.16018289,2388.8,2387.8,0.00479998]
[1769888154403,0.16018289,2388.8,2387.8,0.00507047]
[1769888154798,0.16018289,2388.8,2387.8,0.00987045]
[1769888154997,0.16018289,2388.8,2387.8,0.00507047]
[1769888155202,0.16018289,2388.8,2387.9,0.00479998]
[1769888155803,0.16018289,2388.8,2387.8,0.00507047]
[1769888158805,0.16018289,2388.8,2387.9,0.00479998]
[1769888159308,0.16018289,2388.8,2388.0,0.00479998]
[1769888159504,0.16018289,2389.4,2388.3,0.00479998]
[1769888159707,0.16018289,2389.2,2387.9,0.00479998]
[1769888159903,0.16018289,2389.2,2387.8,0.1639703]
[1769888160104,0.16018289,2389.2,2388.0,0.00479998]
[1769888160507,0.00324023,2390.1,2388.1,0.15409985]
[1769888160702,0.16018289,2390.4,2388.9,0.00479998]
[1769888160906,0.16018289,2390.2,2388.8,0.15409985]
[1769888161100,2.48722139,2390.3,2389.1,0.15889983]
[1769888161307,0.36960289,2391.0,2389.1,0.15409985]
[1769888161605,0.16018289,2390.9,2389.7,0.15409985]
[1769888161810,0.00487585,2391.0,2389.9,0.15409985]
[1769888162011,0.00487585,2391.0,2390.4,0.00479998]
[1769888162208,0.00487585,2391.0,2390.2,0.00479998]
[1769888162405,0.00487585,2391.0,2390.7,0.00479998]
[1769888162607,0.16018289,2391.2,2389.9,0.15409985]
[1769888162807,3.351,2391.3,2389.7,0.0035146]
[1769888162808,0.16018289,2390.4,2389.7,0.0035146]
[1769888163111,0.16018289,2390.4,2388.7,0.15409985]
[1769888163112,0.16018289,2390.0,2388.7,0.15409985]
[1769888163509,0.16018289,2390.4,2388.7,0.15409985]
[1769888163812,0.16018289,2390.7,2388.7,0.15409985]
[1769888164008,0.16018289,2390.3,2388.7,0.1581118]
[1769888166314,0.00505111,2390.4,2388.7,0.1581118]
[1769888166613,0.16018289,2391.5,2389.2,0.15409985]
[1769888166807,0.16018289,2392.0,2389.6,0.15409985]
[1769888167007,0.16018289,2392.0,2389.7,0.14969605]
[1769888167207,0.15553342,2391.9,2389.7,0.14969605]
[1769888167611,0.16034132,2391.9,2389.7,0.14969605]
[1769888167811,0.15553342,2391.0,2389.3,0.14969605]
[1769888168113,0.15553342,2390.3,2388.5,0.14969605]
[1769888168609,0.36505342,2389.8,2387.7,4.98230121]
[1769888168808,0.15553342,2389.6,2387.8,0.14969605]
[1769888169006,0.15553342,2390.0,2387.9,0.14969605]
[1769888169206,0.36497342,2390.8,2388.6,0.14969605]
[1769888169412,0.15553342,2390.7,2388.6,0.14969605]
[1769888169616,0.15553342,2390.7,2388.7,0.14969605]
[1769888170314,0.15553342,2390.7,2388.8,0.14969605]
[1769888170515,0.15918172,2390.7,2388.9,0.14969605]
[1769888172513,0.15918172,2390.7,2389.0,0.14969605]
[1769888173713,0.15918172,2390.7,2389.1,0.14969605]
[1769888173912,0.0036483,2390.7,2389.3,0.14969605]
[1769888174114,0.0036483,2390.7,2389.5,0.14969605]
[1769888174617,0.15918172,2390.7,2389.5,0.14969605]
[1769888174808,0.15918172,2390.7,2389.1,0.14969605]
[1769888175013,0.0036483,2390.7,2389.3,0.14969605]
[1769888175213,0.0036483,2390.7,2389.4,0.14969605]
[1769888175411,0.0036483,2390.7,2389.6,4.98230121]
[1769888175612,0.0036483,2390.7,2389.7,0.14969605]
[1769888176614,0.15918172,2390.7,2389.7,0.14969605]
[1769888176819,0.15918172,2390.7,2388.9,8.99632455]
[1769888176820,0.15918172,2390.7,2389.2,4.83260516]
[1769888177020,0.15918172,2390.7,2389.0,4.98230121]
[1769888177222,0.15918172,2390.7,2389.1,4.98230121]
[1769888177521,0.15918172,2390.7,2389.2,0.14969605]
[1769888179816,0.15918172,2390.7,2389.3,0.14969605]
[1769888180223,0.0036483,2390.7,2389.3,0.14969605]
[1769888180427,0.0036483,2390.7,2389.5,0.14969605]
[1769888180721,0.0036483,2390.7,2389.6,0.14969605]
[1769888181325,0.15918172,2390.7,2389.6,0.14969605]
[1769888181924,0.15553342,2390.6,2389.2,0.14969605]
[1769888183127,0.15553342,2390.5,2389.0,3.63510582]
[1769888183328,0.15553342,2389.8,2388.8,0.00513066]
[1769888184028,0.15553342,2389.5,2387.8,3.63510582]
[1769888184322,0.15553342,2389.1,2387.5,3.78480187]
[1769888184518,0.15553342,2389.0,2387.5,0.14969605]
[1769888184718,0.15553342,2389.0,2387.2,4.83260516]
[1769888185025,0.15553342,2388.7,2387.3,0.14969605]
[1769888185628,0.15553342,2388.7,2387.4,0.14969605]
[1769888185824,0.15553342,2388.6,2387.4,0.14969605]
[1769888186021,0.15553342,2388.6,2387.2,4.83702666]
[1769888186326,0.15553342,2388.6,2387.3,0.14969605]
[1769888186529,0.40656899,2388.7,2387.3,4.98230121]
[1769888186826,0.15553342,2388.6,2387.2,0.15411755]
[1769888187022,0.41173101,2388.9,2387.3,0.14969605]
[1769888187227,0.15553342,2388.8,2387.4,0.14969605]
[1769888188224,0.15553342,2388.8,2387.2,0.0044215]
[1769888188726,0.15553342,2388.8,2387.2,0.15411755]
[1769888188917,0.40939778,2388.9,2387.6,0.14969605]
[1769888189122,0.00472834,2389.0,2387.6,4.98230121]
[1769888189325,0.00472834,2389.0,2387.7,0.14969605]
[1769888189720,0.16026176,2389.0,2387.7,0.14969605]
[1769888189921,0.15553342,2388.9,2387.4,4.98230121]
[1769888190118,0.15553342,2388.9,2387.5,4.98230121]
[1769888190328,0.15553342,2388.9,2387.5,0.14969605]
[1769888191422,0.00472834,2389.0,2387.9,4.83260516]
[1769888191727,0.15553342,2389.2,2387.9,0.14969605]
[1769888191926,0.15553342,2389.6,2387.9,0.14969605]
[1769888192223,0.4195353,2389.7,2388.1,0.14969605]
[1769888192422,0.15553342,2389.9,2388.4,0.14969605]
[1769888192624,0.15934741,2389.9,2388.4,0.14969605]
[1769888192925,0.57284427,2389.9,2388.4,0.14969605]
[1769888193232,0.15553342,2389.8,2388.4,0.14969605]
[1769888193424,0.15553342,2389.8,2388.0,4.98230121]
[1769888193822,0.15553342,2389.8,2388.1,0.14969605]
[1769888194023,0.15553342,2389.8,2387.6,10.36099355]
[1769888194024,0.15553342,2389.7,2387.9,4.83260516]
[1769888194224,0.41731085,2389.9,2387.7,6.23312621]
[1769888194225,0.15553342,2389.3,2387.7,0.14969605]
[1769888194425,0.15553342,2389.1,2387.4,4.83260516]
[1769888194625,0.15553342,2389.1,2387.3,4.98230121]
[1769888194626,0.15553342,2389.0,2387.3,4.98230121]
[1769888195226,0.15553342,2389.0,2387.3,0.14969605]
[1769888195428,0.15553342,2388.9,2387.2,0.0044215]
[1769888195633,0.15553342,2388.7,2387.2,0.15411755]
[1769888197729,0.15509667,2388.6,2387.2,0.15411755]
[1769888197932,3.351,2388.8,2386.6,7.30899355]
[1769888197933,0.15509667,2388.3,2386.6,4.83260516]
[1769888198233,0.15509667,2388.3,2386.3,4.98834638]
[1769888198432,0.15509667,2388.3,2386.4,0.15574122]
[1769888198838,0.15509667,2387.6,2385.6,0.15574122]
[1769888199032,0.15509667,2387.4,2385.7,0.15574122]
[1769888200731,3.352,2387.5,2386.1,0.15574122]
[1769888200935,3.352,2387.5,2386.2,0.15574122]
[1769888201332,0.00454681,2387.6,2386.3,0.14755428]
[1769888201935,0.16437204,2387.6,2386.3,0.14755428]
[1769888202136,0.16437204,2387.6,2385.9,0.14755428]
[1769888202333,0.15982523,2387.4,2385.6,0.15204769]
[1769888202526,0.15982523,2387.2,2385.6,0.15204769]
[1769888204332,0.15982523,2386.9,2385.6,0.00449341]
[1769888204739,0.15982523,2386.8,2385.6,0.00449341]
[1769888204937,0.15982523,2386.7,2384.8,0.14755428]
[1769888205138,0.15982523,2386.6,2384.8,0.14755428]
[1769888205936,0.15982523,2386.6,2384.8,0.15142078]
[1769888206533,0.15982523,2387.5,2385.0,0.14755428]
[1769888206738,0.15982523,2387.5,2385.1,0.14755428]
[1769888207330,0.15982523,2387.2,2385.1,0.14755428]
[1769888207838,0.15982523,2387.1,2385.1,0.14755428]
[1769888208035,0.15982523,2387.1,2385.2,0.14755428]
[1769888209530,0.15982523,2387.1,2385.3,0.14755428]
[1769888209734,0.15982523,2387.5,2385.6,0.14755428]
[1769888209936,0.15982523,2387.5,2385.8,0.14755428]
[1769888210336,0.15982523,2387.5,2385.9,0.14755428]
[1769888210935,0.15982523,2387.4,2385.9,0.14755428]
[1769888211844,0.15982523,2387.4,2386.0,0.14755428]
[1769888212344,0.15982523,2387.4,2385.8,0.14755428]
[1769888213134,0.15982523,2387.3,2385.4,4.98015944]
[1769888213340,0.15982523,2387.3,2385.5,0.14755428]
[1769888213536,0.15982523,2387.3,2385.6,0.14755428]
[1769888213944,0.15982523,2387.2,2385.6,0.14755428]
[1769888214535,0.15982523,2387.1,2385.6,0.14755428]
[1769888214740,0.15982523,2386.8,2385.3,0.14755428]
[1769888215142,0.15982523,2386.5,2384.9,0.14755428]
[1769888216738,0.15982523,2386.1,2384.8,0.0038665]
[1769888216944,0.15982523,2386.1,2384.8,0.15142078]
[1769888217345,0.15982523,2386.5,2384.8,0.15142078]
[1769888217547,0.15982523,2386.5,2384.9,0.14755428]
[1769888217739,0.36966523,2386.2,2384.8,0.0038665]
[1769888217942,0.15982523,2386.1,2384.8,0.0038665]
[1769888218249,0.15982523,2386.0,2384.8,0.0038665]
[1769888218645,5.8421522,2386.9,2383.9,0.14755428]
[1769888218646,0.15982523,2385.6,2383.9,0.14755428]
[1769888218848,0.15982523,2385.5,2383.9,0.14755428]
[1769888219540,0.16325586,2385.5,2383.9,0.00343203]